[Event "76th Montenegro Championship 2024"]
[Site "Podgorica"]
[Date "2024.02.06"]
[Round "1.1"]
[White "Kadric, Denis"]
[Black "Nenezic, Danilo"]
[Result "1-0"]
[ECO "B43"]
[WhiteElo "2584"]
[BlackElo "2086"]
[Annotator "RC"]
[PlyCount "61"]
[EventDate "2024.02.06"]
[EventType "swiss"]
[EventCountry "MNE"]
[SourceTitle "playchess.com"]
[Source "ChessBase"]
[SourceQuality "1"]
[TimeControl "40/5400+30:1800+30"]

1. e4 {[%emt 0:00:03]} c5 {[%emt 0:00:59]} 2. Nc3 {[%emt 0:00:06]} e6 {[%emt 0:00:11]} 3. Nge2 {[%emt 0:01:13]} a6 {[%emt 0:00:34]} 4. g3 {[%emt 0:00:32]} b5 {[%emt 0:00:27]} 5. d4 {[%emt 0:00:49]} cxd4 {[%emt 0:02:13]} 6. Nxd4 {[%emt 0:00:04]} Bb7 {[%emt 0:01:00]} 7. Bg2 {[%emt 0:00:02]} b4 {[%emt 0:02:24]} 8. Na4 {[%emt 0:00:03]} Nf6 {[%emt 0:02:28]} 9. c4 {[%emt 0:00:06]} Qc7 {[%emt 0:09:14]} 10. O-O {[%emt 0:05:48]} d6 {[%emt 0:00:48]} 11. Re1 {[%emt 0:04:47]} Be7 {[%emt 0:01:50]} 12. Bd2 {[%emt 0:17:38]} Nc6 {[%emt 0:12:17]} 13. Nxc6 {[%emt 0:01:32]} Bxc6 {[%emt 0:08:51]} 14. Bxb4 {[%emt 0:00:03]} Nd7 {[%emt 0:08:50]} 15. Nc3 {[%emt 0:01:14]} O-O {[%emt 0:05:30]} 16. Nd5 {[%emt 0:01:18]} Bxd5 {[%emt 0:01:42]} 17. cxd5 {[%emt 0:00:23]} e5 {[%emt 0:02:47]} 18. Rc1 {[%emt 0:00:02]} Qb7 {[%emt 0:06:02]} 19. Ba3 {[%emt 0:01:34]} a5 {[%emt 0:01:52]} 20. Rc6 {[%emt 0:03:43]} Nb8 {[%emt 0:00:35]} 21. Rc3 {[%emt 0:02:12]} Na6 {[%emt 0:02:02]} 22. Qd2 {[%emt 0:06:06]} h6 {[%emt 0:03:48]} 23. Rec1 {[%emt 0:02:08]} f5 {[%emt 0:02:58]} 24. Rc6 {[%emt 0:02:54]} fxe4 {[%emt 0:03:38]} 25. Bxd6 {[%emt 0:01:11]} Bg5 {[%emt 0:01:09]} 26. Qe2 {[%emt 0:02:46]} Bxc1 {[%emt 0:04:00]} 27. Bxf8 {[%emt 0:00:03]} Bxb2 {[%emt 0:01:02]} 28. Bxg7 {[%emt 0:00:37]} e3 {[%emt 0:04:56]} 29. Bxh6 {[%emt 0:02:22]} exf2+ {[%emt 0:00:45]} 30. Kf1 {[%emt 0:00:01]} Bd4 {[%emt 0:03:41]} 31. Be4 {[%emt 0:05:53]} 1-0

[Event "76th Montenegro Championship 2024"]
[Site "Podgorica"]
[Date "2024.02.06"]
[Round "1.2"]
[White "Skvortsova, Alena"]
[Black "Petrov, Nikita"]
[Result "0-1"]
[ECO "B51"]
[WhiteElo "2111"]
[BlackElo "2563"]
[Annotator "TA"]
[PlyCount "48"]
[EventDate "2024.02.06"]
[EventType "swiss"]
[EventCountry "MNE"]
[SourceTitle "playchess.com"]
[Source "ChessBase"]
[SourceQuality "1"]
[TimeControl "40/5400+30:1800+30"]

{[%evp 16,48,24,23,37,34,37,17,17,0,0,-50,-43,-23,-44,-105,-104,-125,-97,-189,-188,-190,-96,-156,-107,-356,-338,-333,-274,-401,-329,-337,-321,-331,-334]} 1. e4 {[%emt 0:00:04]} c5 {[%emt 0:00:10]} 2. Nf3 {[%emt 0:00:08]} Nc6 {[%emt 0:00:10]} 3. Bb5 {[%emt 0:00:12]} d6 {[%emt 0:01:27]} 4. O-O {[%emt 0:00:20]} Bd7 {[%emt 0:00:27]} 5. Re1 {[%emt 0:00:16]} Nf6 {[%emt 0:00:23]} 6. c3 {[%emt 0:03:27]} a6 {[%emt 0:00:15]} 7. Bf1 {[%emt 0:00:52]} Bg4 {[%emt 0:00:49]} 8. d4 {[%emt 0:05:18]} cxd4 {[%emt 0:03:20]} 9. cxd4 {[%emt 0:00:08]} Bxf3 {[%emt 0:01:17]} 10. gxf3 {[%emt 0:00:10]} d5 {[%emt 0:00:05]} 11. e5 {[%emt 0:08:10]} Nh5 {[%emt 0:00:07] The position is equal.} 12. e6 {[%emt 0:15:38] [#] Threatens to win with exf7+.} (12. f4 $5 g6 $8 13. f5 $11) 12... g6 {[%emt 0:18:25]} 13. exf7+ {[%emt 0:05:53]} (13. Nc3 $11) 13... Kxf7 $15 {[%emt 0:00:04]} 14. Bh3 {[%emt 0:02:54] Prevents e6} Ng7 {[%emt 0:02:33] Inhibits Be6+.} 15. Nc3 {[%emt 0:17:32]} (15. Bg5 $15) 15... e6 $17 {[%emt 0:04:09]} 16. Ne2 {[%emt 0:06:33]} Bd6 {[%emt 0:07:36]} 17. Be3 {[%emt 0:09:58]} (17. Qb3 $17) 17... Qh4 $19 {[%emt 0:03:20]} 18. Kg2 {[%emt 0:00:34]} Nf5 {[%emt 0:01:30]} (18... g5 $19 {...h5 would now be deadly.} 19. Qc1 h6) 19. Qd2 {[%emt 0:07:44]} (19. Qb3 $142) 19... Qh5 {[%emt 0:05:49] Black has more active pieces.} ({Black should play} 19... Bb4 20. Nc3 Bd6 (20... Ncxd4 21. Bg4 $17) (20... Nfxd4 $2 21. Bg5 $18)) 20. Bxf5 $2 {[%emt 0:03:42] [#] This costs White the game.} (20. Ng3 $17 {keeps fighting.} Nh4+ 21. Kf1 Bxg3 (21... Qxf3 22. Bg5 $17) 22. Bg4 Nxf3 23. Bxf3 Qxf3 24. hxg3) 20... Qxh2+ {[%emt 0:00:54]} ({Not} 20... gxf5 21. Bf4 Bb4 22. Qe3 $17) (20... Qxf5 21. a3 $15) (20... exf5 21. Rh1 $11) 21. Kf1 {[%emt 0:00:04]} gxf5 {[%emt 0:02:26]} 22. Ng3 {[%emt 0:03:56]} (22. Nf4 $142) 22... Bxg3 {[%emt 0:03:40]} 23. fxg3 {[%emt 0:00:08]} Qxd2 {[%emt 0:02:32]} ({Don't take} 23... Qxg3 24. Bf2 Qd6 (24... Qxf3 25. Qh6 $17) 25. Qh6 $19) 24. Bxd2 {[%emt 0:00:06]} Nxd4 {[%emt 0:00:04] Weighted Error Value: White=0.79/Black=0.31.  Loses game:     	White=1     	---        Mistake:       	White=5     	Black=2      OK:         	White=2     	Black=6      Best:        	---       	Black=3} 0-1

[Event "76th Montenegro Championship 2024"]
[Site "Podgorica"]
[Date "2024.02.06"]
[Round "1.3"]
[White "Djukic, Nikola"]
[Black "Djukanovic, Sreten"]
[Result "1-0"]
[ECO "B90"]
[WhiteElo "2529"]
[BlackElo "2068"]
[Annotator "TA"]
[PlyCount "69"]
[EventDate "2024.02.06"]
[EventType "swiss"]
[EventCountry "MNE"]
[SourceTitle "playchess.com"]
[Source "ChessBase"]
[SourceQuality "1"]
[TimeControl "40/5400+30:1800+30"]

{[%evp 12,69,21,0,14,22,16,-9,0,-11,-20,-29,-32,-41,-16,-31,-25,-43,-34,-33,0,22,387,384,366,161,306,325,329,305,305,281,281,258,320,156,335,325,336,330,523,545,517,493,538,529,1029,620,816,963,968,958,852,799,29961,29963,29964,29965,12613,12052]} 1. e4 {[%emt 0:00:03]} c5 {[%emt 0:00:09]} 2. Nf3 {[%emt 0:00:08]} d6 {[%emt 0:00:06]} 3. d4 {[%emt 0:00:07]} cxd4 {[%emt 0:00:02]} 4. Nxd4 {[%emt 0:00:08]} Nf6 {[%emt 0:00:09]} 5. Nc3 {[%emt 0:00:07]} a6 {[%emt 0:00:04]} 6. h3 {[%emt 0:00:07]} e5 {[%emt 0:00:22]} 7. Nb3 {[%emt 0:00:05]} Be6 {[%emt 0:01:44]} 8. Be3 {[%emt 0:00:34]} Be7 {[%emt 0:03:54]} 9. Qf3 {[%emt 0:00:20]} O-O {[%emt 0:03:49] The position is equal.} 10. O-O-O {[%emt 0:00:38]} b5 {[%emt 0:02:53][%cal Bb7b5,Bb5b4][%mdl 32]} 11. g4 {[%emt 0:01:08]} b4 $1 {[%emt 0:04:38]} 12. Nd5 {[%emt 0:00:10]} Nxd5 {[%emt 0:03:59]} 13. exd5 {[%emt 0:00:08]} Bc8 {[%emt 0:03:06]} 14. Bd3 {[%emt 0:00:08]} Nd7 {[%emt 0:08:07]} 15. Nd2 {[%emt 0:11:36][%cal Oh3h4]} Qa5 {[%emt 0:05:48]} ({Better is} 15... a5 $15) 16. Kb1 $11 {[%emt 0:06:57] Black is weak on the light squares} Bb7 $2 {[%emt 0:15:53][%mdl 8192]} (16... Qc7 $11) 17. Qf5 $1 $18 {[%emt 0:23:07][%csl LRd7,LRh7]} Nf6 {[%emt 0:00:55][%cal Og7g6] [#] And now ...g6! would win.} 18. g5 $40 {[%emt 0:00:23][%mdl 128] White is out for blood.} (18. Ne4 $142 $1 {[%cal Re4f6] Nxf6+ would kill now.} Nxd5 (18... Qxd5 19. Nxf6+ gxf6 20. Qxh7#) 19. Nxd6) 18... g6 {[%emt 0:08:27] [#]} (18... Bc8 $142 19. Qf3 Nd7 (19... Nxd5 $2 20. Nc4 $18)) 19. gxf6 $1 {[%emt 0:01:15]} gxf5 {[%emt 0:00:06][%cal Bg6f5,Bf5f4][%mdl 32]} 20. fxe7 {[%emt 0:00:11]} f4 {[%emt 0:04:58]} (20... Qxd5 $2 21. Rhg1+ (21. exf8=B Kxf8 22. Bxf5 Qxh1 $18) 21... Kh8 22. exf8=Q+ (22. exf8=B Rxf8 23. Bh6 Rg8 $18) (22. exf8=N f4 $18) (22. exf8=R+ Rxf8 23. Bh6 Rg8 $18) 22... Rxf8 23. Bh6 $18 (23. Bxf5 Bc8 $18)) 21. Rhg1+ {[%emt 0:04:27]} (21. exf8=B Kxf8 22. Nc4 Qxd5 $11) 21... Kh8 {[%emt 0:00:21] Hoping for ...Rg8.} 22. Nc4 {[%emt 0:02:18]} Qxd5 {[%emt 0:06:15] aiming for ...Rg8.} 23. exf8=Q+ {[%emt 0:00:37]} (23. exf8=R+ Rxf8 24. Be2 Qe6) 23... Rxf8 {[%emt 0:00:07] [#] This costs Black the game.} 24. Be2 $1 {[%emt 0:04:34][%csl LRd5,LRd6] This pair of bishops is nice.} Qe6 {[%emt 0:02:26]} 25. Rxd6 {[%emt 0:02:53]} Qc8 {[%emt 0:06:08]} (25... fxe3 $142 26. Rxe6 exf2) 26. Bb6 {[%emt 0:08:04]} f6 {[%emt 0:01:22]} 27. b3 {[%emt 0:03:40]} Be4 {[%emt 0:03:52]} 28. Bg4 {[%emt 0:05:32]} Bf5 {[%emt 0:04:21]} 29. f3 {[%emt 0:02:31]} h5 {[%emt 0:02:07]} 30. Bxf5 {[%emt 0:10:58]} Qxf5 {[%emt 0:00:01]} 31. Bd8 {[%emt 0:00:11]} Kh7 {[%emt 0:05:33]} 32. h4 {[%emt 0:03:06]} Rg8 {[%emt 0:01:31]} 33. Rxg8 {[%emt 0:00:26]} (33. Rxf6 $2 {is the wrong capture.} Rxg1+ 34. Kb2 Qh3 $19) 33... Kxg8 {[%emt 0:00:02]} 34. Bxf6 {[%emt 0:00:21]} e4 {[%emt 0:00:49]} 35. Ne5 {[%emt 0:00:54] Weighted Error Value: White=0.45/Black=0.76.  Loses game:     	---       	Black=2      Mistake:       	White=1     	Black=3      Inaccurate:     	White=1     	Black=2      OK:         	White=8     	Black=7      Best:        	White=1     	Black=1      Strong:       	White=2     	Black=1} (35. Rxa6 exf3 36. Ne5 Qc8 $19) 1-0

[Event "76th Montenegro Championship 2024"]
[Site "Podgorica"]
[Date "2024.02.06"]
[Round "1.4"]
[White "Ratkovic, Milorad"]
[Black "Draskovic, Luka"]
[Result "0-1"]
[ECO "B73"]
[WhiteElo "2063"]
[BlackElo "2481"]
[Annotator "TA"]
[PlyCount "70"]
[EventDate "2024.02.06"]
[EventType "swiss"]
[EventCountry "MNE"]
[SourceTitle "playchess.com"]
[Source "ChessBase"]
[SourceQuality "1"]
[TimeControl "40/5400+30:1800+30"]

{[%evp 22,70,2,4,11,12,10,0,0,0,0,0,0,-10,-8,-40,-51,-59,-69,-110,-124,-160,-146,-164,-164,-168,-162,-168,-168,-177,-184,-194,-189,-169,-187,-201,-178,-283,-276,-360,-356,-379,-408,-560,-492,-424,-416,-1096,-1093,-1150,-1115]} 1. e4 {[%emt 0:00:03]} c5 {[%emt 0:00:05]} 2. Nf3 {[%emt 0:00:04]} d6 {[%emt 0:00:33]} 3. d4 {[%emt 0:00:53]} cxd4 {[%emt 0:00:08]} 4. Nxd4 {[%emt 0:00:07]} Nf6 {[%emt 0:00:31]} 5. Nc3 {[%emt 0:00:14]} Nc6 {[%emt 0:01:16]} 6. h3 {[%emt 0:01:27]} g6 {[%emt 0:06:15]} 7. Be3 {[%emt 0:02:36]} Bg7 {[%emt 0:00:39]} 8. Be2 {[%emt 0:01:40]} O-O {[%emt 0:01:06]} 9. O-O {[%emt 0:00:41]} Bd7 {[%emt 0:03:03]} 10. Qd2 {[%emt 0:05:42]} Nxd4 {[%emt 0:09:51]} 11. Bxd4 {[%emt 0:00:55]} Bc6 {[%emt 0:00:12]} 12. Bf3 {[%emt 0:11:26]} Nd7 {[%emt 0:04:56]} 13. Bxg7 {[%emt 0:00:24]} Kxg7 {[%emt 0:00:05]} 14. Be2 {[%emt 0:16:36]} Qb6 {[%emt 0:06:58] The position is equal.} 15. Rab1 {[%emt 0:11:37]} Nf6 {[%emt 0:14:09]} 16. Bf3 {[%emt 0:10:49]} Qa5 {[%emt 0:04:05]} 17. b4 {[%emt 0:09:18]} Qe5 {[%emt 0:02:33][%cal Rc6e4]} 18. b5 {[%emt 0:00:40]} Bd7 {[%emt 0:07:51]} (18... Nxe4 $6 19. Bxe4 Bxe4 20. Rbe1 $16) (18... Bxe4 $6 19. Nxe4 Nxe4 20. Bxe4 Qxe4 21. Rfe1 $14) 19. Rfe1 {[%emt 0:01:50]} Rfc8 {[%emt 0:04:56]} 20. Re3 {[%emt 0:00:32] [#] Black keeps a firm grip on the game.} Rc5 $1 {[%emt 0:00:56]} 21. Be2 {[%emt 0:06:14]} Rac8 {[%emt 0:02:52] Black is more active.} 22. Rb3 {[%emt 0:00:58]} Be6 $36 {[%emt 0:02:08][%mdl 2048] Black has strong initiative.} 23. Ra3 {[%emt 0:00:35]} b6 {[%emt 0:09:08]} 24. Bd1 {[%emt 0:01:09]} R5c7 {[%emt 0:00:48]} 25. Qe1 {[%emt 0:02:55]} Bc4 {[%emt 0:01:15]} 26. Nd5 {[%emt 0:08:32]} Nxd5 {[%emt 0:02:52]} 27. exd5 {[%emt 0:00:30]} Qxd5 {[%emt 0:00:13]} 28. Bf3 {[%emt 0:00:07]} Qc5 {[%emt 0:03:50]} (28... Qxb5 29. Rxe7 Rxe7 30. Qxe7 $17) 29. Bc6 {[%emt 0:01:34]} (29. Rac3 {might work better.}) 29... d5 $19 {[%emt 0:00:44][%cal Oa7a6]} (29... Bxb5 30. Bxb5 Qxb5 31. Rxe7 $17) 30. Rf3 {[%emt 0:01:53][%cal Of3f7]} d4 {[%emt 0:02:27][%cal Oa7a6]} (30... Bxb5 $2 {loses.} 31. Rxf7+ Kxf7 32. Rf3+ Kg7 33. Qe5+ Kg8 34. Bxd5+ $18) 31. Ra4 {[%emt 0:01:33] [#]} a6 $1 {[%emt 0:02:46][%mdl 512]} 32. Be4 {[%emt 0:01:57]} (32. Rxc4 Qxc4) 32... axb5 {[%emt 0:00:29]} 33. Rb4 {[%emt 0:00:10]} Qe5 {[%emt 0:00:42]} ({Don't do} 33... Bxa2 34. Rd3 $19) 34. g4 {[%emt 0:00:49]} (34. Rb1 $142) 34... Bd5 {[%emt 0:00:43] aiming for ...Rxc2.} 35. Rxb5 {[%emt 0:00:46]} Qxe4 {[%emt 0:00:12] Weighted Error Value: White=0.48/Black=0.04 (flawless) .  Mistake:       	White=2     	---        Inaccurate:     	White=4     	---        OK:         	White=8     	Black=15     Best:        	---       	Black=1      Strong:       	---       	Black=1      Brilliant:      	---       	Black=1} 0-1

[Event "76th Montenegro Championship 2024"]
[Site "Podgorica"]
[Date "2024.02.06"]
[Round "1.5"]
[White "Kalezic, Blazo"]
[Black "Kandic, Milojko"]
[Result "1-0"]
[ECO "C10"]
[WhiteElo "2407"]
[BlackElo "2046"]
[Annotator "TA"]
[PlyCount "61"]
[EventDate "2024.02.06"]
[EventType "swiss"]
[EventCountry "MNE"]
[SourceTitle "playchess.com"]
[Source "ChessBase"]
[SourceQuality "1"]
[TimeControl "40/5400+30:1800+30"]

{[%evp 12,61,37,10,33,11,16,17,18,0,0,-7,20,24,47,41,85,47,104,27,22,8,4,0,30,26,75,72,79,75,84,80,166,166,148,168,166,155,570,548,859,858,843,820,1145,1161,1279,1215,2039,2027,29992,29993]} 1. e4 {[%emt 0:00:04]} e6 {[%emt 0:00:42]} 2. d4 {[%emt 0:00:09]} d5 {[%emt 0:00:10]} 3. Nd2 {[%emt 0:00:13]} dxe4 {[%emt 0:02:32]} 4. Nxe4 {[%emt 0:00:11]} Nd7 {[%emt 0:00:22]} 5. Nf3 {[%emt 0:00:35]} Ngf6 {[%emt 0:01:21]} 6. Nxf6+ {[%emt 0:00:31]} Nxf6 {[%emt 0:01:43]} 7. Be3 {[%emt 0:00:14]} Be7 {[%emt 0:05:51]} 8. c3 {[%emt 0:01:28]} O-O {[%emt 0:02:05]} 9. Bd3 {[%emt 0:01:08]} b6 {[%emt 0:06:17] The position is equal.} 10. Qc2 {[%emt 0:00:26]} Bb7 {[%emt 0:01:47]} 11. O-O-O {[%emt 0:01:31]} Qc8 {[%emt 0:02:10]} 12. Ne5 {[%emt 0:04:47]} h6 {[%emt 0:22:37][%cal Of6d5]} 13. Kb1 {[%emt 0:01:51]} Rd8 {[%emt 0:07:16][%cal Oc7c5]} 14. Rhe1 {[%emt 0:06:35]} c5 {[%emt 0:04:04] [#]} (14... Bd6 $14) 15. dxc5 {[%emt 0:00:19] White has more active pieces.} ({White should try} 15. g4 $1 $16) 15... Bxc5 $11 {[%emt 0:01:18]} 16. Bc1 {[%emt 0:00:14]} Qc7 {[%emt 0:07:05]} 17. f4 {[%emt 0:03:12]} Bd6 {[%emt 0:05:46]} 18. g4 {[%emt 0:05:42]} Bxe5 {[%emt 0:10:49]} (18... Rac8 $1 $11 {is superior.}) 19. fxe5 $16 {[%emt 0:00:16]} Nxg4 {[%emt 0:10:34]} 20. Qe2 {[%emt 0:00:35] Against Bf3} Rxd3 {[%emt 0:02:07]} 21. Qxd3 {[%emt 0:03:49] Qe2 would now be deadly.} ({Not} 21. Rxd3 Ba6 22. Qc2 Bxd3 (22... Nxe5 23. Rg3 $11) 23. Qxd3 Nxe5 $17 (23... Nxh2 $2 {too greedy.} 24. Qe2 $18)) 21... Nxe5 {[%emt 0:03:02]} (21... Nf2 $16 22. Qd7 Be4+ 23. Ka1 Qxd7 24. Rxd7 Bg6) 22. Qg3 $1 $18 {[%emt 0:00:28][%csl LRe5,LRh6]} f6 {[%emt 0:00:48][%cal Bf7f6,Bf6f5][%mdl 32]} 23. Bxh6 {[%emt 0:00:36] Black must now prevent Ka1.} Qf7 {[%emt 0:00:54]} 24. Ka1 $36 {[%emt 0:03:04][%mdl 2048] Threatens to win with Rg1. White is in control.} g5 $2 {[%emt 0:00:36] [#] This move loses the game for Black.} (24... Bf3 $16) 25. Bxg5 $1 {[%emt 0:00:57][%mdl 512]} Ng6 {[%emt 0:00:30]} (25... Qg7 26. Bxf6) 26. Rf1 {[%emt 0:01:19]} f5 {[%emt 0:00:13]} 27. h4 {[%emt 0:00:13][%cal Bh2h4,Bh4h5][%mdl 32]} Kh7 {[%emt 0:00:37]} 28. h5 {[%emt 0:01:07]} Nf8 {[%emt 0:00:12]} 29. Be3 {[%emt 0:00:49] White wants to mate with Rg1.} Rc8 {[%emt 0:00:13]} 30. Rg1 {[%emt 0:01:23] Threatening mate with Qg5.} Bd5 {[%emt 0:00:33]} 31. Qg5 {[%emt 0:00:10] Weighted Error Value: White=0.15 (very precise) /Black=0.83.  Loses game:     	---       	Black=1      Mistake:       	White=1     	Black=3      Inaccurate:     	White=1     	Black=4      OK:         	White=9     	Black=7      Best:        	White=1     	Black=1} 1-0

[Event "76th Montenegro Championship 2024"]
[Site "Podgorica"]
[Date "2024.02.06"]
[Round "1.6"]
[White "Loncar, Milenko"]
[Black "Smirnov, Artem"]
[Result "0-1"]
[ECO "A05"]
[WhiteElo "2026"]
[BlackElo "2406"]
[Annotator "TA"]
[PlyCount "70"]
[EventDate "2024.02.06"]
[EventType "swiss"]
[EventCountry "MNE"]
[SourceTitle "playchess.com"]
[Source "ChessBase"]
[SourceQuality "1"]
[TimeControl "40/5400+30:1800+30"]

{[%evp 9,69,6,16,0,4,10,19,0,6,10,2,0,0,0,8,-63,-52,-94,-85,-110,-122,-169,-180,-213,-209,-263,-224,-248,-260,-475,-453,-461,-455,-433,-412,-379,-339,-368,-369,-351,-347,-347,-360,-381,-388,-479,-527,-881,-866,-995,-951,-924,-900,-29993,-29994,-29994,-29995,-29995,-29996,-29996,-29997,-29999]} 1. Nf3 {[%emt 0:00:52]} Nf6 {[%emt 0:00:08]} 2. g3 {[%emt 0:00:13]} b6 {[%emt 0:00:08]} 3. Bg2 {[%emt 0:00:32]} Bb7 {[%emt 0:00:08]} 4. O-O {[%emt 0:00:50]} e6 {[%emt 0:00:11]} 5. d3 {[%emt 0:01:10]} c5 {[%emt 0:01:22]} 6. Nc3 {[%emt 0:02:40]} d5 {[%emt 0:05:45]} 7. Bf4 {[%emt 0:03:26][%cal Oe2e4]} Be7 {[%emt 0:08:16]} 8. Nb5 {[%emt 0:01:20] The position is equal.} Na6 {[%emt 0:00:23] Repels Nc7+} 9. a4 {[%emt 0:06:13]} O-O {[%emt 0:02:15]} 10. c3 {[%emt 0:06:21][%cal Oe2e4]} Nh5 {[%emt 0:03:04]} 11. Bd2 {[%emt 0:04:35][%cal Oe2e4]} Nb8 {[%emt 0:05:55]} 12. g4 {[%emt 0:04:05]} (12. Re1 $11) 12... Nf6 $1 $15 {[%emt 0:02:49]} 13. Bf4 {[%emt 0:03:57] [#] Black keeps a firm grip on the game.} a6 $1 {[%emt 0:10:08]} ({Reject} 13... Nxg4 $6 14. h3 Nf6 15. Nc7 $11) 14. Na3 {[%emt 0:19:28]} Nxg4 {[%emt 0:03:23]} 15. Kh1 {[%emt 0:02:34]} (15. e4 $17 {was worth a try.}) 15... Bd6 $19 {[%emt 0:06:36]} 16. Bg5 {[%emt 0:01:29]} f6 {[%emt 0:03:33]} 17. Bd2 {[%emt 0:01:03]} Nd7 {[%emt 0:02:40]} 18. d4 {[%emt 0:00:38]} f5 {[%emt 0:06:22]} 19. Ng5 $2 {[%emt 0:04:28]} (19. b4 {might work better.}) 19... Nxh2 {[%emt 0:06:29]} (19... Bxh2 $2 20. f3 Bc7 21. fxg4 $19) 20. Nc4 {[%emt 0:03:20]} dxc4 {[%emt 0:12:06]} ({But not} 20... Nxf1 21. Nxd6 Nxd2 22. Qxd2 $19) 21. Bxb7 {[%emt 0:00:41]} Nxf1 {[%emt 0:02:30]} 22. Qxf1 {[%emt 0:01:29] [#]} h6 $1 {[%emt 0:03:17]} 23. Bxa8 {[%emt 0:08:22]} Qxa8+ {[%emt 0:00:39]} 24. Nf3 {[%emt 0:00:27]} Nf6 {[%emt 0:03:48]} 25. Qg2 {[%emt 0:04:43]} Ng4 {[%emt 0:00:10]} 26. Kg1 {[%emt 0:00:47]} Qe4 {[%emt 0:02:23]} 27. Kf1 {[%emt 0:01:09]} Rf6 {[%emt 0:02:19] Strongly threatening ...Rg6.} 28. Qh3 {[%emt 0:04:31] [#]} Nh2+ $1 {[%emt 0:04:03][%mdl 512]} 29. Ke1 {[%emt 0:01:13]} (29. Kg2 cxd4) 29... Nxf3+ {[%emt 0:01:18]} 30. Qxf3 {[%emt 0:00:22]} Rg6 {[%emt 0:00:11]} 31. Kf1 {[%emt 0:00:55] Prevents Rg1+.} Bh2 {[%emt 0:00:21][%csl Gh2][%cal Rg6g1] Black mates.} 32. Bg5 {[%emt 0:03:38]} Rxg5 {[%emt 0:00:14][%csl Gh2][%cal Rg5g1]} 33. Ke1 {[%emt 0:09:29]} Rg1+ {[%emt 0:00:17]} 34. Kd2 {[%emt 0:00:00]} Bf4+ {[%emt 0:00:17]} 35. e3 {[%emt 0:00:00]} Qd3# {[%emt 0:04:32] Weighted Error Value: White=0.64/Black=0.06 (flawless) .  Mistake:       	White=3     	---        Inaccurate:     	White=2     	---        OK:         	White=3     	Black=12     Best:        	White=2     	Black=1      Strong:       	---       	Black=2} 0-1